Workbook

Sheet Income
B1: Income
B2: =NOW() -> 2019-03-13T17:29:37.120 | D2: =B4 -> 2019-01-01 | E2: =DATE(YEAR(D2),MONTH(D2)+1,DAY(D2)) -> 2019-02-01 | F2: =DATE(YEAR(E2),MONTH(E2)+1,DAY(E2)) -> 2019-03-01 | G2: 2019-04-01 | H2: 2019-05-01 | I2: 2019-06-01 | J2: 2019-07-01 | K2: 2019-08-01 | L2: 2019-09-01 | M2: 2019-10-01 | N2: 2019-11-01 | O2: 2019-12-01 | P2: 2020-01-01 | Q2: 2020-02-01 | R2: 2020-03-01 | S2: 2020-04-01 | T2: 2020-05-01 | U2: 2020-06-01 | V2: 2020-07-01 | W2: 2020-08-01 | X2: 2020-09-01 | Y2: 2020-10-01 | Z2: 2020-11-01 | AA2: 2020-12-01 | AB2: 2021-01-01 | AC2: 2021-02-01 | AD2: 2021-03-01 | AE2: 2021-04-01 | AF2: 2021-05-01 | AG2: 2021-06-01 | AH2: 2021-07-01 | AI2: 2021-08-01 | AJ2: 2021-09-01 | AK2: 2021-10-01 | AL2: 2021-11-01 | AM2: 2021-12-01 | AN2: 2022-01-01 | AO2: 2022-02-01 | AP2: 2022-03-01 | AQ2: 2022-04-01 | AR2: 2022-05-01 | AS2: 2022-06-01 | AT2: 2022-07-01 | AU2: 2022-08-01 | AV2: 2022-09-01 | AW2: 2022-10-01 | AX2: 2022-11-01 | AY2: 2022-12-01 | AZ2: 2023-01-01 | BA2: 2023-02-01 | BB2: 2023-03-01 | BC2: 2023-04-01 | BD2: 2023-05-01 | BE2: 2023-06-01 | BF2: 2023-07-01 | BG2: 2023-08-01 | BH2: 2023-09-01 | BI2: 2023-10-01 | BJ2: 2023-11-01 | BK2: 2023-12-01 | BL2: 2024-01-01 | BM2: 2024-02-01 | BN2: 2024-03-01 | BO2: 2024-04-01 | BP2: 2024-05-01 | BQ2: 2024-06-01 | BR2: =DATE(YEAR(BQ2),MONTH(BQ2)+1,DAY(BQ2)) -> 2024-07-01 | BS2: 2024-08-01 | BT2: 2024-09-01 | BU2: 2024-10-01 | BV2: 2024-11-01 | BW2: 2024-12-01 | BX2: 2025-01-01 | BY2: 2025-02-01 | BZ2: 2025-03-01 | CA2: 2025-04-01 | CB2: 2025-05-01 | CC2: 2025-06-01 | CD2: 2025-07-01 | CE2: 2025-08-01 | CF2: 2025-09-01 | CG2: 2025-10-01 | CH2: 2025-11-01 | CI2: 2025-12-01 | CJ2: 2026-01-01 | CK2: 2026-02-01 | CL2: 2026-03-01 | CM2: 2026-04-01 | CN2: 2026-05-01 | CO2: 2026-06-01 | CP2: 2026-07-01 | CQ2: 2026-08-01 | CR2: 2026-09-01 | CS2: 2026-10-01 | CT2: 2026-11-01 | CU2: 2026-12-01 | CV2: 2027-01-01 | CW2: 2027-02-01 | CX2: 2027-03-01 | CY2: 2027-04-01 | CZ2: 2027-05-01 | DA2: 2027-06-01 | DB2: 2027-07-01 | DC2: 2027-08-01 | DD2: 2027-09-01 | DE2: 2027-10-01 | DF2: 2027-11-01 | DG2: 2027-12-01 | DH2: 2028-01-01 | DI2: 2028-02-01 | DJ2: 2028-03-01 | DK2: 2028-04-01 | DL2: 2028-05-01 | DM2: 2028-06-01 | DN2: 2028-07-01 | DO2: 2028-08-01 | DP2: 2028-09-01 | DQ2: 2028-10-01 | DR2: 2028-11-01 | DS2: 2028-12-01
B3: Starting Date | D3: =TEXT(D2,"mmm yy") -> Jan 19 | E3: =TEXT(E2,"mmm yy") -> Feb 19 | F3: =TEXT(F2,"mmm yy") -> Mar 19 | G3: Apr 19 | H3: May 19 | I3: Jun 19 | J3: Jul 19 | K3: Aug 19 | L3: Sep 19 | M3: Oct 19 | N3: Nov 19 | O3: Dec 19 | P3: Jan 20 | Q3: Feb 20 | R3: Mar 20 | S3: Apr 20 | T3: May 20 | U3: Jun 20 | V3: Jul 20 | W3: Aug 20 | X3: Sep 20 | Y3: Oct 20 | Z3: Nov 20 | AA3: Dec 20 | AB3: Jan 21 | AC3: Feb 21 | AD3: Mar 21 | AE3: Apr 21 | AF3: May 21 | AG3: Jun 21 | AH3: Jul 21 | AI3: Aug 21 | AJ3: Sep 21 | AK3: Oct 21 | AL3: Nov 21 | AM3: Dec 21 | AN3: Jan 22 | AO3: Feb 22 | AP3: Mar 22 | AQ3: Apr 22 | AR3: May 22 | AS3: Jun 22 | AT3: Jul 22 | AU3: Aug 22 | AV3: Sep 22 | AW3: Oct 22 | AX3: Nov 22 | AY3: Dec 22 | AZ3: Jan 23 | BA3: Feb 23 | BB3: Mar 23 | BC3: Apr 23 | BD3: May 23 | BE3: Jun 23 | BF3: Jul 23 | BG3: Aug 23 | BH3: Sep 23 | BI3: Oct 23 | BJ3: Nov 23 | BK3: Dec 23 | BL3: Jan 24 | BM3: Feb 24 | BN3: Mar 24 | BO3: Apr 24 | BP3: May 24 | BQ3: Jun 24 | BR3: =TEXT(BR2,"mmm yy") -> Jul 24 | BS3: Aug 24 | BT3: Sep 24 | BU3: Oct 24 | BV3: Nov 24 | BW3: Dec 24 | BX3: Jan 25 | BY3: Feb 25 | BZ3: Mar 25 | CA3: Apr 25 | CB3: May 25 | CC3: Jun 25 | CD3: Jul 25 | CE3: Aug 25 | CF3: Sep 25 | CG3: Oct 25 | CH3: Nov 25 | CI3: Dec 25 | CJ3: Jan 26 | CK3: Feb 26 | CL3: Mar 26 | CM3: Apr 26 | CN3: May 26 | CO3: Jun 26 | CP3: Jul 26 | CQ3: Aug 26 | CR3: Sep 26 | CS3: Oct 26 | CT3: Nov 26 | CU3: Dec 26 | CV3: Jan 27 | CW3: Feb 27 | CX3: Mar 27 | CY3: Apr 27 | CZ3: May 27 | DA3: Jun 27 | DB3: Jul 27 | DC3: Aug 27 | DD3: Sep 27 | DE3: Oct 27 | DF3: Nov 27 | DG3: Dec 27 | DH3: Jan 28 | DI3: Feb 28 | DJ3: Mar 28 | DK3: Apr 28 | DL3: May 28 | DM3: Jun 28 | DN3: Jul 28 | DO3: Aug 28 | DP3: Sep 28 | DQ3: Oct 28 | DR3: Nov 28 | DS3: Dec 28
B4: 2019-01-01 | C4: Plan | D4: =SUMIF($C$8:$C$9441,$C4,D$8:D$9441) -> 3545.34 | E4: 3545.34 | F4: 3545.34 | G4: 3745.34 | H4: 3545.34 | I4: 3545.34 | J4: 3545.34 | K4: 3545.34 | L4: 3545.34 | M4: 3545.34 | N4: =SUMIF($C$8:$C$9441,$C4,N$8:N$9441) -> 3545.34 | O4: 3545.34 | P4: 0 | Q4: 0 | R4: 0 | S4: 0 | T4: 0 | U4: 0 | V4: 0 | W4: 0 | X4: =SUMIF($C$8:$C$9441,$C4,X$8:X$9441) -> 0 | Y4: 0 | Z4: 0 | AA4: 0 | AB4: 0 | AC4: 0 | AD4: 0 | AE4: 0 | AF4: 0 | AG4: 0 | AH4: =SUMIF($C$8:$C$9441,$C4,AH$8:AH$9441) -> 0 | AI4: 0 | AJ4: 0 | AK4: 0 | AL4: 0 | AM4: 0 | AN4: 0 | AO4: 0 | AP4: 0 | AQ4: 0 | AR4: =SUMIF($C$8:$C$9441,$C4,AR$8:AR$9441) -> 0 | AS4: 0 | AT4: 0 | AU4: 0 | AV4: 0 | AW4: 0 | AX4: 0 | AY4: 0 | AZ4: 0 | BA4: 0 | BB4: =SUMIF($C$8:$C$9441,$C4,BB$8:BB$9441) -> 0 | BC4: 0 | BD4: 0 | BE4: 0 | BF4: 0 | BG4: 0 | BH4: 0 | BI4: 0 | BJ4: 0 | BK4: 0 | BL4: =SUMIF($C$8:$C$9441,$C4,BL$8:BL$9441) -> 0 | BM4: 0 | BN4: 0 | BO4: 0 | BP4: 0 | BQ4: 0 | BR4: 0 | BS4: 0 | BT4: 0 | BU4: 0 | BV4: =SUMIF($C$8:$C$9441,$C4,BV$8:BV$9441) -> 0 | BW4: 0 | BX4: 0 | BY4: 0 | BZ4: 0 | CA4: 0 | CB4: 0 | CC4: 0 | CD4: 0 | CE4: 0 | CF4: =SUMIF($C$8:$C$9441,$C4,CF$8:CF$9441) -> 0 | CG4: 0 | CH4: 0 | CI4: 0 | CJ4: 0 | CK4: 0 | CL4: 0 | CM4: 0 | CN4: 0 | CO4: 0 | CP4: =SUMIF($C$8:$C$9441,$C4,CP$8:CP$9441) -> 0 | CQ4: 0 | CR4: 0 | CS4: 0 | CT4: 0 | CU4: 0 | CV4: 0 | CW4: 0 | CX4: 0 | CY4: 0 | CZ4: =SUMIF($C$8:$C$9441,$C4,CZ$8:CZ$9441) -> 0 | DA4: 0 | DB4: 0 | DC4: 0 | DD4: 0 | DE4: 0 | DF4: 0 | DG4: 0 | DH4: 0 | DI4: 0 | DJ4: =SUMIF($C$8:$C$9441,$C4,DJ$8:DJ$9441) -> 0 | DK4: 0 | DL4: 0 | DM4: 0 | DN4: 0 | DO4: 0 | DP4: 0 | DQ4: 0 | DR4: 0 | DS4: 0
C5: Actual | D5: 3439.78 | E5: 3267.89 | F5: 3845.34 | G5: 0 | H5: 0 | I5: 0 | J5: 0 | K5: 0 | L5: 0 | M5: 0 | N5: 0 | O5: 0 | P5: 0 | Q5: 0 | R5: 0 | S5: 0 | T5: 0 | U5: 0 | V5: 0 | W5: 0 | X5: 0 | Y5: 0 | Z5: 0 | AA5: 0 | AB5: 0 | AC5: 0 | AD5: 0 | AE5: 0 | AF5: 0 | AG5: 0 | AH5: 0 | AI5: 0 | AJ5: 0 | AK5: 0 | AL5: 0 | AM5: 0 | AN5: 0 | AO5: 0 | AP5: 0 | AQ5: 0 | AR5: 0 | AS5: 0 | AT5: 0 | AU5: 0 | AV5: 0 | AW5: 0 | AX5: 0 | AY5: 0 | AZ5: 0 | BA5: 0 | BB5: 0 | BC5: 0 | BD5: 0 | BE5: 0 | BF5: 0 | BG5: 0 | BH5: 0 | BI5: 0 | BJ5: 0 | BK5: 0 | BL5: 0 | BM5: 0 | BN5: 0 | BO5: 0 | BP5: 0 | BQ5: 0 | BR5: 0 | BS5: 0 | BT5: 0 | BU5: 0 | BV5: 0 | BW5: 0 | BX5: 0 | BY5: 0 | BZ5: 0 | CA5: 0 | CB5: 0 | CC5: 0 | CD5: 0 | CE5: 0 | CF5: 0 | CG5: 0 | CH5: 0 | CI5: 0 | CJ5: 0 | CK5: 0 | CL5: 0 | CM5: 0 | CN5: 0 | CO5: 0 | CP5: 0 | CQ5: 0 | CR5: 0 | CS5: 0 | CT5: 0 | CU5: 0 | CV5: 0 | CW5: 0 | CX5: 0 | CY5: 0 | CZ5: 0 | DA5: 0 | DB5: 0 | DC5: 0 | DD5: 0 | DE5: 0 | DF5: 0 | DG5: 0 | DH5: 0 | DI5: 0 | DJ5: 0 | DK5: 0 | DL5: 0 | DM5: 0 | DN5: 0 | DO5: 0 | DP5: 0 | DQ5: 0 | DR5: 0 | DS5: 0
B6: Income Category | C6: Diff. | D6: =D5-D4 -> -105.56 | E6: =E5-E4 -> -277.45 | F6: 300 | G6: -3745.34 | H6: -3545.34 | I6: -3545.34 | J6: -3545.34 | K6: -3545.34 | L6: -3545.34 | M6: -3545.34 | N6: -3545.34 | O6: -3545.34 | P6: 0 | Q6: 0 | R6: 0 | S6: 0 | T6: 0 | U6: 0 | V6: 0 | W6: 0 | X6: 0 | Y6: 0 | Z6: 0 | AA6: 0 | AB6: 0 | AC6: 0 | AD6: 0 | AE6: 0 | AF6: 0 | AG6: 0 | AH6: 0 | AI6: 0 | AJ6: 0 | AK6: 0 | AL6: 0 | AM6: 0 | AN6: 0 | AO6: 0 | AP6: 0 | AQ6: 0 | AR6: 0 | AS6: 0 | AT6: 0 | AU6: 0 | AV6: 0 | AW6: 0 | AX6: 0 | AY6: 0 | AZ6: 0 | BA6: 0 | BB6: 0 | BC6: 0 | BD6: 0 | BE6: 0 | BF6: 0 | BG6: 0 | BH6: 0 | BI6: 0 | BJ6: 0 | BK6: 0 | BL6: 0 | BM6: 0 | BN6: 0 | BO6: 0 | BP6: 0 | BQ6: =BQ5-BQ4 -> 0 | BR6: 0 | BS6: 0 | BT6: 0 | BU6: 0 | BV6: 0 | BW6: 0 | BX6: 0 | BY6: 0 | BZ6: 0 | CA6: 0 | CB6: 0 | CC6: 0 | CD6: 0 | CE6: 0 | CF6: 0 | CG6: 0 | CH6: 0 | CI6: 0 | CJ6: 0 | CK6: 0 | CL6: 0 | CM6: 0 | CN6: 0 | CO6: 0 | CP6: 0 | CQ6: 0 | CR6: 0 | CS6: 0 | CT6: 0 | CU6: 0 | CV6: 0 | CW6: 0 | CX6: 0 | CY6: 0 | CZ6: 0 | DA6: 0 | DB6: 0 | DC6: 0 | DD6: 0 | DE6: 0 | DF6: 0 | DG6: 0 | DH6: 0 | DI6: 0 | DJ6: 0 | DK6: 0 | DL6: 0 | DM6: 0 | DN6: 0 | DO6: 0 | DP6: 0 | DQ6: 0 | DR6: 0 | DS6: 0
B8: Wages | C8: Plan | D8: 3000 | E8: 3000 | F8: 3000 | G8: 3200 | H8: 3000 | I8: 3000 | J8: 3000 | K8: 3000 | L8: 3000 | M8: 3000 | N8: 3000 | O8: 3000
C9: Actual | D9: 3000 | E9: 3000 | F9: 3000
B11: Self employment | C11: Plan | D11: 500 | E11: 500 | F11: 500 | G11: 500 | H11: 500 | I11: 500 | J11: 500 | K11: 500 | L11: 500 | M11: 500 | N11: 500 | O11: 500
C12: Actual | D12: 394.44 | E12: 222.55 | F12: 800
B14: Child benefit | C14: Plan | D14: 45.34 | E14: 45.34 | F14: 45.34 | G14: 45.34 | H14: 45.34 | I14: 45.34 | J14: 45.34 | K14: 45.34 | L14: 45.34 | M14: 45.34 | N14: 45.34 | O14: 45.34
C15: Actual | D15: 45.34 | E15: 45.34 | F15: 45.34
B17: <another income> | C17: Plan
C18: Actual
B20: <another income> | C20: Plan
C21: Actual
B23: <another income> | C23: Plan
C24: Actual
B26: <another income> | C26: Plan
C27: Actual
B29: <another income> | C29: Plan
C30: Actual
B32: <another income> | C32: Plan
C33: Actual
B35: <another income> | C35: Plan
C36: Actual
B38: <another income> | C38: Plan
C39: Actual
B41: <another income> | C41: Plan
C42: Actual
B44: <another income> | C44: Plan
C45: Actual
B47: <another income> | C47: Plan
C48: Actual
B50: <another income> | C50: Plan
C51: Actual
B53: <another income> | C53: Plan
C54: Actual
B56: <another income> | C56: Plan
C57: Actual
B59: <another income> | C59: Plan
C60: Actual
B62: <another income> | C62: Plan
C63: Actual
B65: <another income> | C65: Plan
C66: Actual
B68: <another income> | C68: Plan
C69: Actual
B71: <another income> | C71: Plan
C72: Actual
B74: <another income> | C74: Plan
C75: Actual
B77: <another income> | C77: Plan
C78: Actual
B80: <another income> | C80: Plan
C81: Actual
B83: <another income> | C83: Plan
C84: Actual
B86: <another income> | C86: Plan
C87: Actual
B89: <another income> | C89: Plan
C90: Actual
B92: <another income> | C92: Plan
C93: Actual
B95: <another income> | C95: Plan
C96: Actual
B98: <another income> | C98: Plan
C99: Actual
B101: <another income> | C101: Plan
C102: Actual
B104: <another income> | C104: Plan
C105: Actual
B107: <another income> | C107: Plan
C108: Actual
B110: <another income> | C110: Plan
C111: Actual
B113: <another income> | C113: Plan
C114: Actual
B116: <another income> | C116: Plan
C117: Actual
B119: <another income> | C119: Plan
C120: Actual
B122: <another income> | C122: Plan
C123: Actual
B125: <another income> | C125: Plan
C126: Actual
B128: <another income> | C128: Plan
C129: Actual
B131: <another income> | C131: Plan
C132: Actual
B134: <another income> | C134: Plan
C135: Actual
B137: <another income> | C137: Plan
C138: Actual
B140: <another income> | C140: Plan
C141: Actual
B143: <another income> | C143: Plan
C144: Actual
B146: <another income> | C146: Plan
C147: Actual
B149: <another income> | C149: Plan
C150: Actual
B152: <another income> | C152: Plan
C153: Actual
B155: <another income> | C155: Plan
C156: Actual
B158: <another income> | C158: Plan
C159: Actual
B161: <another income> | C161: Plan
C162: Actual
B164: <another income> | C164: Plan
C165: Actual
B167: <another income> | C167: Plan
C168: Actual
B170: <another income> | C170: Plan
C171: Actual
B173: <another income> | C173: Plan
C174: Actual
B176: <another income> | C176: Plan
C177: Actual
B179: <another income> | C179: Plan
C180: Actual
B182: <another income> | C182: Plan
C183: Actual
B185: <another income> | C185: Plan
C186: Actual
B188: <another income> | C188: Plan
C189: Actual
B191: <another income> | C191: Plan
C192: Actual
B194: <another income> | C194: Plan
C195: Actual
B197: <another income> | C197: Plan
C198: Actual
B200: <another income> | C200: Plan
C201: Actual
B203: <another income> | C203: Plan
C204: Actual
B206: <another income> | C206: Plan
C207: Actual
B209: <another income> | C209: Plan
C210: Actual
B212: <another income> | C212: Plan
C213: Actual
B215: <another income> | C215: Plan
C216: Actual
B218: <another income> | C218: Plan
C219: Actual
B221: <another income> | C221: Plan
C222: Actual
B224: <another income> | C224: Plan
C225: Actual
B227: <another income> | C227: Plan
C228: Actual
B230: <another income> | C230: Plan
C231: Actual
B233: <another income> | C233: Plan
C234: Actual
B236: <another income> | C236: Plan
C237: Actual
B239: <another income> | C239: Plan
C240: Actual
B242: <another income> | C242: Plan
C243: Actual
B245: <another income> | C245: Plan
C246: Actual
B248: <another income> | C248: Plan
C249: Actual
B251: <another income> | C251: Plan
C252: Actual
B254: <another income> | C254: Plan
C255: Actual
B257: <another income> | C257: Plan
C258: Actual
B260: <another income> | C260: Plan
C261: Actual
B263: <another income> | C263: Plan
C264: Actual
B266: <another income> | C266: Plan
C267: Actual
B269: <another income> | C269: Plan
C270: Actual
B272: <another income> | C272: Plan
C273: Actual
B275: <another income> | C275: Plan
C276: Actual
B278: <another income> | C278: Plan
C279: Actual
B281: <another income> | C281: Plan
C282: Actual
B284: <another income> | C284: Plan
C285: Actual
B287: <another income> | C287: Plan
C288: Actual
B290: <another income> | C290: Plan
C291: Actual
B293: <another income> | C293: Plan
C294: Actual
B296: <another income> | C296: Plan
C297: Actual
... 236 more rows

Sheet Outgoings
B1: Outgoings
B2: =NOW() -> 2019-03-13T17:29:37.120 | D2: =Income!B4 -> 2019-01-01 | E2: =DATE(YEAR(D2),MONTH(D2)+1,DAY(D2)) -> 2019-02-01 | F2: =DATE(YEAR(E2),MONTH(E2)+1,DAY(E2)) -> 2019-03-01 | G2: 2019-04-01 | H2: 2019-05-01 | I2: 2019-06-01 | J2: 2019-07-01 | K2: 2019-08-01 | L2: 2019-09-01 | M2: 2019-10-01 | N2: 2019-11-01 | O2: 2019-12-01 | P2: 2020-01-01 | Q2: 2020-02-01 | R2: 2020-03-01 | S2: 2020-04-01 | T2: 2020-05-01 | U2: 2020-06-01 | V2: 2020-07-01 | W2: 2020-08-01 | X2: 2020-09-01 | Y2: 2020-10-01 | Z2: 2020-11-01 | AA2: 2020-12-01 | AB2: 2021-01-01 | AC2: 2021-02-01 | AD2: 2021-03-01 | AE2: 2021-04-01 | AF2: 2021-05-01 | AG2: 2021-06-01 | AH2: 2021-07-01 | AI2: 2021-08-01 | AJ2: 2021-09-01 | AK2: 2021-10-01 | AL2: 2021-11-01 | AM2: 2021-12-01 | AN2: 2022-01-01 | AO2: 2022-02-01 | AP2: 2022-03-01 | AQ2: 2022-04-01 | AR2: 2022-05-01 | AS2: 2022-06-01 | AT2: 2022-07-01 | AU2: 2022-08-01 | AV2: 2022-09-01 | AW2: 2022-10-01 | AX2: 2022-11-01 | AY2: 2022-12-01 | AZ2: 2023-01-01 | BA2: 2023-02-01 | BB2: 2023-03-01 | BC2: 2023-04-01 | BD2: 2023-05-01 | BE2: 2023-06-01 | BF2: 2023-07-01 | BG2: 2023-08-01 | BH2: 2023-09-01 | BI2: 2023-10-01 | BJ2: 2023-11-01 | BK2: 2023-12-01 | BL2: 2024-01-01 | BM2: 2024-02-01 | BN2: 2024-03-01 | BO2: 2024-04-01 | BP2: 2024-05-01 | BQ2: 2024-06-01 | BR2: =DATE(YEAR(BQ2),MONTH(BQ2)+1,DAY(BQ2)) -> 2024-07-01 | BS2: 2024-08-01 | BT2: 2024-09-01 | BU2: 2024-10-01 | BV2: 2024-11-01 | BW2: 2024-12-01 | BX2: 2025-01-01 | BY2: 2025-02-01 | BZ2: 2025-03-01 | CA2: 2025-04-01 | CB2: 2025-05-01 | CC2: 2025-06-01 | CD2: 2025-07-01 | CE2: 2025-08-01 | CF2: 2025-09-01 | CG2: 2025-10-01 | CH2: 2025-11-01 | CI2: 2025-12-01 | CJ2: 2026-01-01 | CK2: 2026-02-01 | CL2: 2026-03-01 | CM2: 2026-04-01 | CN2: 2026-05-01 | CO2: 2026-06-01 | CP2: 2026-07-01 | CQ2: 2026-08-01 | CR2: 2026-09-01 | CS2: 2026-10-01 | CT2: 2026-11-01 | CU2: 2026-12-01 | CV2: 2027-01-01 | CW2: 2027-02-01 | CX2: 2027-03-01 | CY2: 2027-04-01 | CZ2: 2027-05-01 | DA2: 2027-06-01 | DB2: 2027-07-01 | DC2: 2027-08-01 | DD2: 2027-09-01 | DE2: 2027-10-01 | DF2: 2027-11-01 | DG2: 2027-12-01 | DH2: 2028-01-01 | DI2: 2028-02-01 | DJ2: 2028-03-01 | DK2: 2028-04-01 | DL2: 2028-05-01 | DM2: 2028-06-01 | DN2: 2028-07-01 | DO2: 2028-08-01 | DP2: 2028-09-01 | DQ2: 2028-10-01 | DR2: 2028-11-01 | DS2: 2028-12-01
D3: =TEXT(D2,"mmm yy") -> Jan 19 | E3: =TEXT(E2,"mmm yy") -> Feb 19 | F3: =TEXT(F2,"mmm yy") -> Mar 19 | G3: Apr 19 | H3: May 19 | I3: Jun 19 | J3: Jul 19 | K3: Aug 19 | L3: Sep 19 | M3: Oct 19 | N3: Nov 19 | O3: Dec 19 | P3: Jan 20 | Q3: Feb 20 | R3: Mar 20 | S3: Apr 20 | T3: May 20 | U3: Jun 20 | V3: Jul 20 | W3: Aug 20 | X3: Sep 20 | Y3: Oct 20 | Z3: Nov 20 | AA3: Dec 20 | AB3: Jan 21 | AC3: Feb 21 | AD3: Mar 21 | AE3: Apr 21 | AF3: May 21 | AG3: Jun 21 | AH3: Jul 21 | AI3: Aug 21 | AJ3: Sep 21 | AK3: Oct 21 | AL3: Nov 21 | AM3: Dec 21 | AN3: Jan 22 | AO3: Feb 22 | AP3: Mar 22 | AQ3: Apr 22 | AR3: May 22 | AS3: Jun 22 | AT3: Jul 22 | AU3: Aug 22 | AV3: Sep 22 | AW3: Oct 22 | AX3: Nov 22 | AY3: Dec 22 | AZ3: Jan 23 | BA3: Feb 23 | BB3: Mar 23 | BC3: Apr 23 | BD3: May 23 | BE3: Jun 23 | BF3: Jul 23 | BG3: Aug 23 | BH3: Sep 23 | BI3: Oct 23 | BJ3: Nov 23 | BK3: Dec 23 | BL3: Jan 24 | BM3: Feb 24 | BN3: Mar 24 | BO3: Apr 24 | BP3: May 24 | BQ3: Jun 24 | BR3: =TEXT(BR2,"mmm yy") -> Jul 24 | BS3: Aug 24 | BT3: Sep 24 | BU3: Oct 24 | BV3: Nov 24 | BW3: Dec 24 | BX3: Jan 25 | BY3: Feb 25 | BZ3: Mar 25 | CA3: Apr 25 | CB3: May 25 | CC3: Jun 25 | CD3: Jul 25 | CE3: Aug 25 | CF3: Sep 25 | CG3: Oct 25 | CH3: Nov 25 | CI3: Dec 25 | CJ3: Jan 26 | CK3: Feb 26 | CL3: Mar 26 | CM3: Apr 26 | CN3: May 26 | CO3: Jun 26 | CP3: Jul 26 | CQ3: Aug 26 | CR3: Sep 26 | CS3: Oct 26 | CT3: Nov 26 | CU3: Dec 26 | CV3: Jan 27 | CW3: Feb 27 | CX3: Mar 27 | CY3: Apr 27 | CZ3: May 27 | DA3: Jun 27 | DB3: Jul 27 | DC3: Aug 27 | DD3: Sep 27 | DE3: Oct 27 | DF3: Nov 27 | DG3: Dec 27 | DH3: Jan 28 | DI3: Feb 28 | DJ3: Mar 28 | DK3: Apr 28 | DL3: May 28 | DM3: Jun 28 | DN3: Jul 28 | DO3: Aug 28 | DP3: Sep 28 | DQ3: Oct 28 | DR3: Nov 28 | DS3: Dec 28
C4: Plan | D4: =SUMIF($C$8:$C$9441,$C4,D$8:D$9441) -> 3545.34 | E4: 3545.34 | F4: 4045.34 | G4: 3545 | H4: 3545 | I4: 3545.34 | J4: 3545.34 | K4: 3545.34 | L4: 3545.34 | M4: 3545.34 | N4: =SUMIF($C$8:$C$9441,$C4,N$8:N$9441) -> 3545.34 | O4: 3545.34 | P4: 0 | Q4: 0 | R4: 0 | S4: 0 | T4: 0 | U4: 0 | V4: 0 | W4: 0 | X4: =SUMIF($C$8:$C$9441,$C4,X$8:X$9441) -> 0 | Y4: 0 | Z4: 0 | AA4: 0 | AB4: 0 | AC4: 0 | AD4: 0 | AE4: 0 | AF4: 0 | AG4: 0 | AH4: =SUMIF($C$8:$C$9441,$C4,AH$8:AH$9441) -> 0 | AI4: 0 | AJ4: 0 | AK4: 0 | AL4: 0 | AM4: 0 | AN4: 0 | AO4: 0 | AP4: 0 | AQ4: 0 | AR4: =SUMIF($C$8:$C$9441,$C4,AR$8:AR$9441) -> 0 | AS4: 0 | AT4: 0 | AU4: 0 | AV4: 0 | AW4: 0 | AX4: 0 | AY4: 0 | AZ4: 0 | BA4: 0 | BB4: =SUMIF($C$8:$C$9441,$C4,BB$8:BB$9441) -> 0 | BC4: 0 | BD4: 0 | BE4: 0 | BF4: 0 | BG4: 0 | BH4: 0 | BI4: 0 | BJ4: 0 | BK4: 0 | BL4: =SUMIF($C$8:$C$9441,$C4,BL$8:BL$9441) -> 0 | BM4: 0 | BN4: 0 | BO4: 0 | BP4: 0 | BQ4: 0 | BR4: 0 | BS4: 0 | BT4: 0 | BU4: 0 | BV4: =SUMIF($C$8:$C$9441,$C4,BV$8:BV$9441) -> 0 | BW4: 0 | BX4: 0 | BY4: 0 | BZ4: 0 | CA4: 0 | CB4: 0 | CC4: 0 | CD4: 0 | CE4: 0 | CF4: =SUMIF($C$8:$C$9441,$C4,CF$8:CF$9441) -> 0 | CG4: 0 | CH4: 0 | CI4: 0 | CJ4: 0 | CK4: 0 | CL4: 0 | CM4: 0 | CN4: 0 | CO4: 0 | CP4: =SUMIF($C$8:$C$9441,$C4,CP$8:CP$9441) -> 0 | CQ4: 0 | CR4: 0 | CS4: 0 | CT4: 0 | CU4: 0 | CV4: 0 | CW4: 0 | CX4: 0 | CY4: 0 | CZ4: =SUMIF($C$8:$C$9441,$C4,CZ$8:CZ$9441) -> 0 | DA4: 0 | DB4: 0 | DC4: 0 | DD4: 0 | DE4: 0 | DF4: 0 | DG4: 0 | DH4: 0 | DI4: 0 | DJ4: =SUMIF($C$8:$C$9441,$C4,DJ$8:DJ$9441) -> 0 | DK4: 0 | DL4: 0 | DM4: 0 | DN4: 0 | DO4: 0 | DP4: 0 | DQ4: 0 | DR4: 0 | DS4: 0
C5: Actual | D5: 3538.42 | E5: 3537.1 | F5: 3525.55 | G5: 0 | H5: 0 | I5: 0 | J5: 0 | K5: 0 | L5: 0 | M5: 0 | N5: 0 | O5: 0 | P5: 0 | Q5: 0 | R5: 0 | S5: 0 | T5: 0 | U5: 0 | V5: 0 | W5: 0 | X5: 0 | Y5: 0 | Z5: 0 | AA5: 0 | AB5: 0 | AC5: 0 | AD5: 0 | AE5: 0 | AF5: 0 | AG5: 0 | AH5: 0 | AI5: 0 | AJ5: 0 | AK5: 0 | AL5: 0 | AM5: 0 | AN5: 0 | AO5: 0 | AP5: 0 | AQ5: 0 | AR5: 0 | AS5: 0 | AT5: 0 | AU5: 0 | AV5: 0 | AW5: 0 | AX5: 0 | AY5: 0 | AZ5: 0 | BA5: 0 | BB5: 0 | BC5: 0 | BD5: 0 | BE5: 0 | BF5: 0 | BG5: 0 | BH5: 0 | BI5: 0 | BJ5: 0 | BK5: 0 | BL5: 0 | BM5: 0 | BN5: 0 | BO5: 0 | BP5: 0 | BQ5: 0 | BR5: 0 | BS5: 0 | BT5: 0 | BU5: 0 | BV5: 0 | BW5: 0 | BX5: 0 | BY5: 0 | BZ5: 0 | CA5: 0 | CB5: 0 | CC5: 0 | CD5: 0 | CE5: 0 | CF5: 0 | CG5: 0 | CH5: 0 | CI5: 0 | CJ5: 0 | CK5: 0 | CL5: 0 | CM5: 0 | CN5: 0 | CO5: 0 | CP5: 0 | CQ5: 0 | CR5: 0 | CS5: 0 | CT5: 0 | CU5: 0 | CV5: 0 | CW5: 0 | CX5: 0 | CY5: 0 | CZ5: 0 | DA5: 0 | DB5: 0 | DC5: 0 | DD5: 0 | DE5: 0 | DF5: 0 | DG5: 0 | DH5: 0 | DI5: 0 | DJ5: 0 | DK5: 0 | DL5: 0 | DM5: 0 | DN5: 0 | DO5: 0 | DP5: 0 | DQ5: 0 | DR5: 0 | DS5: 0
B6: Outgoing Category | C6: Diff. | D6: =D4-D5 -> 6.92 | E6: =E4-E5 -> 8.24 | F6: 519.79 | G6: 3545 | H6: 3545 | I6: 3545.34 | J6: 3545.34 | K6: 3545.34 | L6: 3545.34 | M6: 3545.34 | N6: 3545.34 | O6: 3545.34 | P6: 0 | Q6: 0 | R6: 0 | S6: 0 | T6: 0 | U6: 0 | V6: 0 | W6: 0 | X6: 0 | Y6: 0 | Z6: 0 | AA6: 0 | AB6: 0 | AC6: 0 | AD6: 0 | AE6: 0 | AF6: 0 | AG6: 0 | AH6: 0 | AI6: 0 | AJ6: 0 | AK6: 0 | AL6: 0 | AM6: 0 | AN6: 0 | AO6: 0 | AP6: 0 | AQ6: 0 | AR6: 0 | AS6: 0 | AT6: 0 | AU6: 0 | AV6: 0 | AW6: 0 | AX6: 0 | AY6: 0 | AZ6: 0 | BA6: 0 | BB6: 0 | BC6: 0 | BD6: 0 | BE6: 0 | BF6: 0 | BG6: 0 | BH6: 0 | BI6: 0 | BJ6: 0 | BK6: 0 | BL6: 0 | BM6: 0 | BN6: 0 | BO6: 0 | BP6: 0 | BQ6: =BQ4-BQ5 -> 0 | BR6: 0 | BS6: 0 | BT6: 0 | BU6: 0 | BV6: 0 | BW6: 0 | BX6: 0 | BY6: 0 | BZ6: 0 | CA6: 0 | CB6: 0 | CC6: 0 | CD6: 0 | CE6: 0 | CF6: 0 | CG6: 0 | CH6: 0 | CI6: 0 | CJ6: 0 | CK6: 0 | CL6: 0 | CM6: 0 | CN6: 0 | CO6: 0 | CP6: 0 | CQ6: 0 | CR6: 0 | CS6: 0 | CT6: 0 | CU6: 0 | CV6: 0 | CW6: 0 | CX6: 0 | CY6: 0 | CZ6: 0 | DA6: 0 | DB6: 0 | DC6: 0 | DD6: 0 | DE6: 0 | DF6: 0 | DG6: 0 | DH6: 0 | DI6: 0 | DJ6: 0 | DK6: 0 | DL6: 0 | DM6: 0 | DN6: 0 | DO6: 0 | DP6: 0 | DQ6: 0 | DR6: 0 | DS6: 0
B8: Mortgage / Rent | C8: Plan | D8: 3000 | E8: 3000 | F8: 3500 | G8: 3000 | H8: 3000 | I8: 3000 | J8: 3000 | K8: 3000 | L8: 3000 | M8: 3000 | N8: 3000 | O8: 3000
C9: Actual | D9: 2998.89 | E9: 2998.89 | F9: 2998.89
B11: Home insurance | C11: Plan | D11: 500 | E11: 500 | F11: 500 | G11: 500 | H11: 500 | I11: 500 | J11: 500 | K11: 500 | L11: 500 | M11: 500 | N11: 500 | O11: 500
C12: Actual | D12: 489.66 | E12: 489.66 | F12: 489.66
B14: Electricity | C14: Plan | D14: 45.34 | E14: 45.34 | F14: 45.34 | G14: 45 | H14: 45 | I14: 45.34 | J14: 45.34 | K14: 45.34 | L14: 45.34 | M14: 45.34 | N14: 45.34 | O14: 45.34
C15: Actual | D15: 49.87 | E15: 48.55 | F15: 37
B17: Gas | C17: Plan
C18: Actual
B20: Water | C20: Plan
C21: Actual
B23: Phone / Broadband | C23: Plan
C24: Actual
B26: Grocery Shopping | C26: Plan
C27: Actual
B29: Gifts | C29: Plan
C30: Actual
B32: Entertainment | C32: Plan
C33: Actual
B35: Transport | C35: Plan
C36: Actual
B38: Other | C38: Plan
C39: Actual
B41: <another outgoing> | C41: Plan
C42: Actual
B44: <another outgoing> | C44: Plan
C45: Actual
B47: <another outgoing> | C47: Plan
C48: Actual
B50: <another outgoing> | C50: Plan
C51: Actual
B53: <another outgoing> | C53: Plan
C54: Actual
B56: <another outgoing> | C56: Plan
C57: Actual
B59: <another outgoing> | C59: Plan
C60: Actual
B62: <another outgoing> | C62: Plan
C63: Actual
B65: <another outgoing> | C65: Plan
C66: Actual
B68: <another outgoing> | C68: Plan
C69: Actual
B71: <another outgoing> | C71: Plan
C72: Actual
B74: <another outgoing> | C74: Plan
C75: Actual
B77: <another outgoing> | C77: Plan
C78: Actual
B80: <another outgoing> | C80: Plan
C81: Actual
B83: <another outgoing> | C83: Plan
C84: Actual
B86: <another outgoing> | C86: Plan
C87: Actual
B89: <another outgoing> | C89: Plan
C90: Actual
B92: <another outgoing> | C92: Plan
C93: Actual
B95: <another outgoing> | C95: Plan
C96: Actual
B98: <another outgoing> | C98: Plan
C99: Actual
B101: <another outgoing> | C101: Plan
C102: Actual
B104: <another outgoing> | C104: Plan
C105: Actual
B107: <another outgoing> | C107: Plan
C108: Actual
B110: <another outgoing> | C110: Plan
C111: Actual
B113: <another outgoing> | C113: Plan
C114: Actual
B116: <another outgoing> | C116: Plan
C117: Actual
B119: <another outgoing> | C119: Plan
C120: Actual
B122: <another outgoing> | C122: Plan
C123: Actual
B125: <another outgoing> | C125: Plan
C126: Actual
B128: <another outgoing> | C128: Plan
C129: Actual
B131: <another outgoing> | C131: Plan
C132: Actual
B134: <another outgoing> | C134: Plan
C135: Actual
B137: <another outgoing> | C137: Plan
C138: Actual
B140: <another outgoing> | C140: Plan
C141: Actual
B143: <another outgoing> | C143: Plan
C144: Actual
B146: <another outgoing> | C146: Plan
C147: Actual
B149: <another outgoing> | C149: Plan
C150: Actual
B152: <another outgoing> | C152: Plan
C153: Actual
B155: <another outgoing> | C155: Plan
C156: Actual
B158: <another outgoing> | C158: Plan
C159: Actual
B161: <another outgoing> | C161: Plan
C162: Actual
B164: <another outgoing> | C164: Plan
C165: Actual
B167: <another outgoing> | C167: Plan
C168: Actual
B170: <another outgoing> | C170: Plan
C171: Actual
B173: <another outgoing> | C173: Plan
C174: Actual
B176: <another outgoing> | C176: Plan
C177: Actual
B179: <another outgoing> | C179: Plan
C180: Actual
B182: <another outgoing> | C182: Plan
C183: Actual
B185: <another outgoing> | C185: Plan
C186: Actual
B188: <another outgoing> | C188: Plan
C189: Actual
B191: <another outgoing> | C191: Plan
C192: Actual
B194: <another outgoing> | C194: Plan
C195: Actual
B197: <another outgoing> | C197: Plan
C198: Actual
B200: <another outgoing> | C200: Plan
C201: Actual
B203: <another outgoing> | C203: Plan
C204: Actual
B206: <another outgoing> | C206: Plan
C207: Actual
B209: <another outgoing> | C209: Plan
C210: Actual
B212: <another outgoing> | C212: Plan
C213: Actual
B215: <another outgoing> | C215: Plan
C216: Actual
B218: <another outgoing> | C218: Plan
C219: Actual
B221: <another outgoing> | C221: Plan
C222: Actual
B224: <another outgoing> | C224: Plan
C225: Actual
B227: <another outgoing> | C227: Plan
C228: Actual
B230: <another outgoing> | C230: Plan
C231: Actual
B233: <another outgoing> | C233: Plan
C234: Actual
B236: <another outgoing> | C236: Plan
C237: Actual
B239: <another outgoing> | C239: Plan
C240: Actual
B242: <another outgoing> | C242: Plan
C243: Actual
B245: <another outgoing> | C245: Plan
C246: Actual
B248: <another outgoing> | C248: Plan
C249: Actual
B251: <another outgoing> | C251: Plan
C252: Actual
B254: <another outgoing> | C254: Plan
C255: Actual
B257: <another outgoing> | C257: Plan
C258: Actual
B260: <another outgoing> | C260: Plan
C261: Actual
B263: <another outgoing> | C263: Plan
C264: Actual
B266: <another outgoing> | C266: Plan
C267: Actual
B269: <another outgoing> | C269: Plan
C270: Actual
B272: <another outgoing> | C272: Plan
C273: Actual
B275: <another outgoing> | C275: Plan
C276: Actual
B278: <another outgoing> | C278: Plan
C279: Actual
B281: <another outgoing> | C281: Plan
C282: Actual
B284: <another outgoing> | C284: Plan
C285: Actual
B287: <another outgoing> | C287: Plan
C288: Actual
B290: <another outgoing> | C290: Plan
C291: Actual
B293: <another outgoing> | C293: Plan
C294: Actual
B296: <another outgoing> | C296: Plan
C297: Actual
... 236 more rows

Sheet Dashboard
K2: Year | L2: 2019 | O2: Year | P2: 2019
A4: Sum of Value | B4: Column Labels | F4: Sum of Value | G4: Column Labels | K4: Sum of Value | L4: Column Labels | O4: Sum of Value | P4: Column Labels
A5: Row Labels | B5: Income Actual | C5: Income Plan | D5: Grand Total | F5: Row Labels | G5: Outgoings Plan | H5: Outgoings Actual | I5: Grand Total | K5: Row Labels | L5: Difference | M5: Grand Total | O5: Row Labels | P5: Difference | Q5: Grand Total
A6: 2019 | B6: 10553.01 | C6: 42744.08 | D6: 53297.09 | F6: 2019 | G6: 43043.4 | H6: 10601.07 | I6: 53644.47 | K6: 2019-01 | L6: -98.64 | M6: -98.64 | O6: 2019-01 | P6: -98.64 | Q6: -98.64
A7: 1 | B7: 3439.78 | C7: 3545.34 | D7: 6985.12 | F7: 1 | G7: 3545.34 | H7: 3538.42 | I7: 7083.76 | K7: 2019-02 | L7: -269.21 | M7: -269.21 | O7: 2019-02 | P7: -367.85 | Q7: -367.85
A8: 2 | B8: 3267.89 | C8: 3545.34 | D8: 6813.23 | F8: 2 | G8: 3545.34 | H8: 3537.1 | I8: 7082.44 | K8: 2019-03 | L8: 319.79 | M8: 319.79 | O8: 2019-03 | P8: -48.06 | Q8: -48.06
A9: 3 | B9: 3845.34 | C9: 3545.34 | D9: 7390.68 | F9: 3 | G9: 4045.34 | H9: 3525.55 | I9: 7570.89 | K9: 2019-04 | L9: 200.34 | M9: 200.34 | O9: 2019-04 | P9: 152.28 | Q9: 152.28
A10: 4 | B10: 0 | C10: 3745.34 | D10: 3745.34 | F10: 4 | G10: 3545 | H10: 0 | I10: 3545 | K10: 2019-05 | L10: 0.34 | M10: 0.34 | O10: 2019-05 | P10: 152.62 | Q10: 152.62
A11: 5 | B11: 0 | C11: 3545.34 | D11: 3545.34 | F11: 5 | G11: 3545 | H11: 0 | I11: 3545 | K11: 2019-06 | L11: 0 | M11: 0 | O11: 2019-06 | P11: 152.62 | Q11: 152.62
A12: 6 | B12: 0 | C12: 3545.34 | D12: 3545.34 | F12: 6 | G12: 3545.34 | H12: 0 | I12: 3545.34 | K12: 2019-07 | L12: 0 | M12: 0 | O12: 2019-07 | P12: 152.62 | Q12: 152.62
A13: 7 | B13: 0 | C13: 3545.34 | D13: 3545.34 | F13: 7 | G13: 3545.34 | H13: 0 | I13: 3545.34 | K13: 2019-08 | L13: 0 | M13: 0 | O13: 2019-08 | P13: 152.62 | Q13: 152.62
A14: 8 | B14: 0 | C14: 3545.34 | D14: 3545.34 | F14: 8 | G14: 3545.34 | H14: 0 | I14: 3545.34 | K14: 2019-09 | L14: 0 | M14: 0 | O14: 2019-09 | P14: 152.62 | Q14: 152.62
A15: 9 | B15: 0 | C15: 3545.34 | D15: 3545.34 | F15: 9 | G15: 3545.34 | H15: 0 | I15: 3545.34 | K15: 2019-10 | L15: 0 | M15: 0 | O15: 2019-10 | P15: 152.62 | Q15: 152.62
A16: 10 | B16: 0 | C16: 3545.34 | D16: 3545.34 | F16: 10 | G16: 3545.34 | H16: 0 | I16: 3545.34 | K16: 2019-11 | L16: 0 | M16: 0 | O16: 2019-11 | P16: 152.62 | Q16: 152.62
A17: 11 | B17: 0 | C17: 3545.34 | D17: 3545.34 | F17: 11 | G17: 3545.34 | H17: 0 | I17: 3545.34 | K17: 2019-12 | L17: 0 | M17: 0 | O17: 2019-12 | P17: 152.62 | Q17: 152.62
A18: 12 | B18: 0 | C18: 3545.34 | D18: 3545.34 | F18: 12 | G18: 3545.34 | H18: 0 | I18: 3545.34 | K18: Grand Total | L18: 152.62 | M18: 152.62 | O18: Grand Total
A19: Grand Total | B19: 10553.01 | C19: 42744.08 | D19: 53297.09 | F19: Grand Total | G19: 43043.4 | H19: 10601.07 | I19: 53644.47

Sheet Data (hidden)
A1: Date | B1: Year | C1: Month | D1: Year Month | E1: MonthText | F1: Type | G1: Value
A2: =Income!B4 -> 2019-01-01 | B2: =YEAR(A2) -> 2019 | C2: =MONTH(A2) -> 1 | D2: =B2&"-"&TEXT(C2,"0#") -> 2019-01 | E2: =TEXT(A2,"mmm yy") -> Jan 19 | F2: Income Plan | G2: =HLOOKUP(E2,Income!$3:$5,2,FALSE) -> 3545.34
A3: =DATE(YEAR(A2),MONTH(A2)+1,DAY(A2)) -> 2019-02-01 | B3: 2019 | C3: 2 | D3: 2019-02 | E3: =TEXT(A3,"mmm yy") -> Feb 19 | F3: Income Plan | G3: =HLOOKUP(E3,Income!$3:$5,2,FALSE) -> 3545.34
A4: =DATE(YEAR(A3),MONTH(A3)+1,DAY(A3)) -> 2019-03-01 | B4: 2019 | C4: 3 | D4: 2019-03 | E4: Mar 19 | F4: Income Plan | G4: =HLOOKUP(E4,Income!$3:$5,2,FALSE) -> 3545.34
A5: 2019-04-01 | B5: 2019 | C5: 4 | D5: 2019-04 | E5: Apr 19 | F5: Income Plan | G5: =HLOOKUP(E5,Income!$3:$5,2,FALSE) -> 3745.34
A6: 2019-05-01 | B6: 2019 | C6: 5 | D6: 2019-05 | E6: May 19 | F6: Income Plan | G6: =HLOOKUP(E6,Income!$3:$5,2,FALSE) -> 3545.34
A7: 2019-06-01 | B7: 2019 | C7: 6 | D7: 2019-06 | E7: Jun 19 | F7: Income Plan | G7: =HLOOKUP(E7,Income!$3:$5,2,FALSE) -> 3545.34
A8: 2019-07-01 | B8: 2019 | C8: 7 | D8: 2019-07 | E8: Jul 19 | F8: Income Plan | G8: =HLOOKUP(E8,Income!$3:$5,2,FALSE) -> 3545.34
A9: 2019-08-01 | B9: 2019 | C9: 8 | D9: 2019-08 | E9: Aug 19 | F9: Income Plan | G9: =HLOOKUP(E9,Income!$3:$5,2,FALSE) -> 3545.34
A10: 2019-09-01 | B10: 2019 | C10: 9 | D10: 2019-09 | E10: Sep 19 | F10: Income Plan | G10: =HLOOKUP(E10,Income!$3:$5,2,FALSE) -> 3545.34
A11: 2019-10-01 | B11: 2019 | C11: 10 | D11: 2019-10 | E11: Oct 19 | F11: Income Plan | G11: =HLOOKUP(E11,Income!$3:$5,2,FALSE) -> 3545.34
A12: 2019-11-01 | B12: 2019 | C12: 11 | D12: 2019-11 | E12: Nov 19 | F12: Income Plan | G12: =HLOOKUP(E12,Income!$3:$5,2,FALSE) -> 3545.34
A13: 2019-12-01 | B13: 2019 | C13: 12 | D13: 2019-12 | E13: Dec 19 | F13: Income Plan | G13: =HLOOKUP(E13,Income!$3:$5,2,FALSE) -> 3545.34
A14: 2020-01-01 | B14: 2020 | C14: 1 | D14: 2020-01 | E14: Jan 20 | F14: Income Plan | G14: =HLOOKUP(E14,Income!$3:$5,2,FALSE) -> 0
A15: 2020-02-01 | B15: 2020 | C15: 2 | D15: 2020-02 | E15: Feb 20 | F15: Income Plan | G15: =HLOOKUP(E15,Income!$3:$5,2,FALSE) -> 0
A16: 2020-03-01 | B16: 2020 | C16: 3 | D16: 2020-03 | E16: Mar 20 | F16: Income Plan | G16: =HLOOKUP(E16,Income!$3:$5,2,FALSE) -> 0
A17: 2020-04-01 | B17: 2020 | C17: 4 | D17: 2020-04 | E17: Apr 20 | F17: Income Plan | G17: =HLOOKUP(E17,Income!$3:$5,2,FALSE) -> 0
A18: 2020-05-01 | B18: 2020 | C18: 5 | D18: 2020-05 | E18: May 20 | F18: Income Plan | G18: =HLOOKUP(E18,Income!$3:$5,2,FALSE) -> 0
A19: 2020-06-01 | B19: 2020 | C19: 6 | D19: 2020-06 | E19: Jun 20 | F19: Income Plan | G19: =HLOOKUP(E19,Income!$3:$5,2,FALSE) -> 0
A20: 2020-07-01 | B20: 2020 | C20: 7 | D20: 2020-07 | E20: Jul 20 | F20: Income Plan | G20: =HLOOKUP(E20,Income!$3:$5,2,FALSE) -> 0
A21: 2020-08-01 | B21: 2020 | C21: 8 | D21: 2020-08 | E21: Aug 20 | F21: Income Plan | G21: =HLOOKUP(E21,Income!$3:$5,2,FALSE) -> 0
A22: 2020-09-01 | B22: 2020 | C22: 9 | D22: 2020-09 | E22: Sep 20 | F22: Income Plan | G22: =HLOOKUP(E22,Income!$3:$5,2,FALSE) -> 0
A23: 2020-10-01 | B23: 2020 | C23: 10 | D23: 2020-10 | E23: Oct 20 | F23: Income Plan | G23: =HLOOKUP(E23,Income!$3:$5,2,FALSE) -> 0
A24: 2020-11-01 | B24: 2020 | C24: 11 | D24: 2020-11 | E24: Nov 20 | F24: Income Plan | G24: =HLOOKUP(E24,Income!$3:$5,2,FALSE) -> 0
A25: 2020-12-01 | B25: 2020 | C25: 12 | D25: 2020-12 | E25: Dec 20 | F25: Income Plan | G25: =HLOOKUP(E25,Income!$3:$5,2,FALSE) -> 0
A26: 2021-01-01 | B26: 2021 | C26: 1 | D26: 2021-01 | E26: Jan 21 | F26: Income Plan | G26: =HLOOKUP(E26,Income!$3:$5,2,FALSE) -> 0
A27: 2021-02-01 | B27: 2021 | C27: 2 | D27: 2021-02 | E27: Feb 21 | F27: Income Plan | G27: =HLOOKUP(E27,Income!$3:$5,2,FALSE) -> 0
A28: 2021-03-01 | B28: 2021 | C28: 3 | D28: 2021-03 | E28: Mar 21 | F28: Income Plan | G28: =HLOOKUP(E28,Income!$3:$5,2,FALSE) -> 0
A29: 2021-04-01 | B29: 2021 | C29: 4 | D29: 2021-04 | E29: Apr 21 | F29: Income Plan | G29: =HLOOKUP(E29,Income!$3:$5,2,FALSE) -> 0
A30: 2021-05-01 | B30: 2021 | C30: 5 | D30: 2021-05 | E30: May 21 | F30: Income Plan | G30: =HLOOKUP(E30,Income!$3:$5,2,FALSE) -> 0
A31: 2021-06-01 | B31: 2021 | C31: 6 | D31: 2021-06 | E31: Jun 21 | F31: Income Plan | G31: =HLOOKUP(E31,Income!$3:$5,2,FALSE) -> 0
A32: 2021-07-01 | B32: 2021 | C32: 7 | D32: 2021-07 | E32: Jul 21 | F32: Income Plan | G32: =HLOOKUP(E32,Income!$3:$5,2,FALSE) -> 0
A33: 2021-08-01 | B33: 2021 | C33: 8 | D33: 2021-08 | E33: Aug 21 | F33: Income Plan | G33: =HLOOKUP(E33,Income!$3:$5,2,FALSE) -> 0
A34: 2021-09-01 | B34: 2021 | C34: 9 | D34: 2021-09 | E34: Sep 21 | F34: Income Plan | G34: =HLOOKUP(E34,Income!$3:$5,2,FALSE) -> 0
A35: 2021-10-01 | B35: 2021 | C35: 10 | D35: 2021-10 | E35: Oct 21 | F35: Income Plan | G35: =HLOOKUP(E35,Income!$3:$5,2,FALSE) -> 0
A36: 2021-11-01 | B36: 2021 | C36: 11 | D36: 2021-11 | E36: Nov 21 | F36: Income Plan | G36: =HLOOKUP(E36,Income!$3:$5,2,FALSE) -> 0
A37: 2021-12-01 | B37: 2021 | C37: 12 | D37: 2021-12 | E37: Dec 21 | F37: Income Plan | G37: =HLOOKUP(E37,Income!$3:$5,2,FALSE) -> 0
A38: 2022-01-01 | B38: 2022 | C38: 1 | D38: 2022-01 | E38: Jan 22 | F38: Income Plan | G38: =HLOOKUP(E38,Income!$3:$5,2,FALSE) -> 0
A39: 2022-02-01 | B39: 2022 | C39: 2 | D39: 2022-02 | E39: Feb 22 | F39: Income Plan | G39: =HLOOKUP(E39,Income!$3:$5,2,FALSE) -> 0
A40: 2022-03-01 | B40: 2022 | C40: 3 | D40: 2022-03 | E40: Mar 22 | F40: Income Plan | G40: =HLOOKUP(E40,Income!$3:$5,2,FALSE) -> 0
A41: 2022-04-01 | B41: 2022 | C41: 4 | D41: 2022-04 | E41: Apr 22 | F41: Income Plan | G41: =HLOOKUP(E41,Income!$3:$5,2,FALSE) -> 0
A42: 2022-05-01 | B42: 2022 | C42: 5 | D42: 2022-05 | E42: May 22 | F42: Income Plan | G42: =HLOOKUP(E42,Income!$3:$5,2,FALSE) -> 0
A43: 2022-06-01 | B43: =YEAR(A43) -> 2022 | C43: =MONTH(A43) -> 6 | D43: =B43&"-"&TEXT(C43,"0#") -> 2022-06 | E43: Jun 22 | F43: Income Plan | G43: =HLOOKUP(E43,Income!$3:$5,2,FALSE) -> 0
A44: 2022-07-01 | B44: 2022 | C44: 7 | D44: 2022-07 | E44: Jul 22 | F44: Income Plan | G44: =HLOOKUP(E44,Income!$3:$5,2,FALSE) -> 0
A45: 2022-08-01 | B45: 2022 | C45: 8 | D45: 2022-08 | E45: Aug 22 | F45: Income Plan | G45: =HLOOKUP(E45,Income!$3:$5,2,FALSE) -> 0
A46: 2022-09-01 | B46: 2022 | C46: 9 | D46: 2022-09 | E46: Sep 22 | F46: Income Plan | G46: =HLOOKUP(E46,Income!$3:$5,2,FALSE) -> 0
A47: 2022-10-01 | B47: 2022 | C47: 10 | D47: 2022-10 | E47: Oct 22 | F47: Income Plan | G47: =HLOOKUP(E47,Income!$3:$5,2,FALSE) -> 0
A48: 2022-11-01 | B48: 2022 | C48: 11 | D48: 2022-11 | E48: Nov 22 | F48: Income Plan | G48: =HLOOKUP(E48,Income!$3:$5,2,FALSE) -> 0
A49: 2022-12-01 | B49: 2022 | C49: 12 | D49: 2022-12 | E49: Dec 22 | F49: Income Plan | G49: =HLOOKUP(E49,Income!$3:$5,2,FALSE) -> 0
A50: 2023-01-01 | B50: 2023 | C50: 1 | D50: 2023-01 | E50: Jan 23 | F50: Income Plan | G50: =HLOOKUP(E50,Income!$3:$5,2,FALSE) -> 0
A51: 2023-02-01 | B51: 2023 | C51: 2 | D51: 2023-02 | E51: Feb 23 | F51: Income Plan | G51: =HLOOKUP(E51,Income!$3:$5,2,FALSE) -> 0
A52: 2023-03-01 | B52: 2023 | C52: 3 | D52: 2023-03 | E52: Mar 23 | F52: Income Plan | G52: =HLOOKUP(E52,Income!$3:$5,2,FALSE) -> 0
A53: 2023-04-01 | B53: 2023 | C53: 4 | D53: 2023-04 | E53: Apr 23 | F53: Income Plan | G53: =HLOOKUP(E53,Income!$3:$5,2,FALSE) -> 0
A54: 2023-05-01 | B54: 2023 | C54: 5 | D54: 2023-05 | E54: May 23 | F54: Income Plan | G54: =HLOOKUP(E54,Income!$3:$5,2,FALSE) -> 0
A55: 2023-06-01 | B55: 2023 | C55: 6 | D55: 2023-06 | E55: Jun 23 | F55: Income Plan | G55: =HLOOKUP(E55,Income!$3:$5,2,FALSE) -> 0
A56: 2023-07-01 | B56: 2023 | C56: 7 | D56: 2023-07 | E56: Jul 23 | F56: Income Plan | G56: =HLOOKUP(E56,Income!$3:$5,2,FALSE) -> 0
A57: 2023-08-01 | B57: 2023 | C57: 8 | D57: 2023-08 | E57: Aug 23 | F57: Income Plan | G57: =HLOOKUP(E57,Income!$3:$5,2,FALSE) -> 0
A58: 2023-09-01 | B58: 2023 | C58: 9 | D58: 2023-09 | E58: Sep 23 | F58: Income Plan | G58: =HLOOKUP(E58,Income!$3:$5,2,FALSE) -> 0
A59: 2023-10-01 | B59: 2023 | C59: 10 | D59: 2023-10 | E59: Oct 23 | F59: Income Plan | G59: =HLOOKUP(E59,Income!$3:$5,2,FALSE) -> 0
A60: 2023-11-01 | B60: 2023 | C60: 11 | D60: 2023-11 | E60: Nov 23 | F60: Income Plan | G60: =HLOOKUP(E60,Income!$3:$5,2,FALSE) -> 0
A61: 2023-12-01 | B61: 2023 | C61: 12 | D61: 2023-12 | E61: Dec 23 | F61: Income Plan | G61: =HLOOKUP(E61,Income!$3:$5,2,FALSE) -> 0
A62: 2024-01-01 | B62: 2024 | C62: 1 | D62: 2024-01 | E62: Jan 24 | F62: Income Plan | G62: =HLOOKUP(E62,Income!$3:$5,2,FALSE) -> 0
A63: 2024-02-01 | B63: 2024 | C63: 2 | D63: 2024-02 | E63: Feb 24 | F63: Income Plan | G63: =HLOOKUP(E63,Income!$3:$5,2,FALSE) -> 0
A64: 2024-03-01 | B64: 2024 | C64: 3 | D64: 2024-03 | E64: Mar 24 | F64: Income Plan | G64: =HLOOKUP(E64,Income!$3:$5,2,FALSE) -> 0
A65: 2024-04-01 | B65: 2024 | C65: 4 | D65: 2024-04 | E65: Apr 24 | F65: Income Plan | G65: =HLOOKUP(E65,Income!$3:$5,2,FALSE) -> 0
A66: 2024-05-01 | B66: 2024 | C66: 5 | D66: 2024-05 | E66: May 24 | F66: Income Plan | G66: =HLOOKUP(E66,Income!$3:$5,2,FALSE) -> 0
A67: 2024-06-01 | B67: 2024 | C67: 6 | D67: 2024-06 | E67: =TEXT(A67,"mmm yy") -> Jun 24 | F67: Income Plan | G67: =HLOOKUP(E67,Income!$3:$5,2,FALSE) -> 0
A68: =DATE(YEAR(A67),MONTH(A67)+1,DAY(A67)) -> 2024-07-01 | B68: 2024 | C68: 7 | D68: 2024-07 | E68: Jul 24 | F68: Income Plan | G68: =HLOOKUP(E68,Income!$3:$5,2,FALSE) -> 0
A69: 2024-08-01 | B69: 2024 | C69: 8 | D69: 2024-08 | E69: Aug 24 | F69: Income Plan | G69: =HLOOKUP(E69,Income!$3:$5,2,FALSE) -> 0
A70: 2024-09-01 | B70: 2024 | C70: 9 | D70: 2024-09 | E70: Sep 24 | F70: Income Plan | G70: =HLOOKUP(E70,Income!$3:$5,2,FALSE) -> 0
A71: 2024-10-01 | B71: 2024 | C71: 10 | D71: 2024-10 | E71: Oct 24 | F71: Income Plan | G71: =HLOOKUP(E71,Income!$3:$5,2,FALSE) -> 0
A72: 2024-11-01 | B72: 2024 | C72: 11 | D72: 2024-11 | E72: Nov 24 | F72: Income Plan | G72: =HLOOKUP(E72,Income!$3:$5,2,FALSE) -> 0
A73: 2024-12-01 | B73: 2024 | C73: 12 | D73: 2024-12 | E73: Dec 24 | F73: Income Plan | G73: =HLOOKUP(E73,Income!$3:$5,2,FALSE) -> 0
A74: 2025-01-01 | B74: 2025 | C74: 1 | D74: 2025-01 | E74: Jan 25 | F74: Income Plan | G74: =HLOOKUP(E74,Income!$3:$5,2,FALSE) -> 0
A75: 2025-02-01 | B75: 2025 | C75: 2 | D75: 2025-02 | E75: Feb 25 | F75: Income Plan | G75: =HLOOKUP(E75,Income!$3:$5,2,FALSE) -> 0
A76: 2025-03-01 | B76: 2025 | C76: 3 | D76: 2025-03 | E76: Mar 25 | F76: Income Plan | G76: =HLOOKUP(E76,Income!$3:$5,2,FALSE) -> 0
A77: 2025-04-01 | B77: 2025 | C77: 4 | D77: 2025-04 | E77: Apr 25 | F77: Income Plan | G77: =HLOOKUP(E77,Income!$3:$5,2,FALSE) -> 0
A78: 2025-05-01 | B78: 2025 | C78: 5 | D78: 2025-05 | E78: May 25 | F78: Income Plan | G78: =HLOOKUP(E78,Income!$3:$5,2,FALSE) -> 0
A79: 2025-06-01 | B79: 2025 | C79: 6 | D79: 2025-06 | E79: Jun 25 | F79: Income Plan | G79: =HLOOKUP(E79,Income!$3:$5,2,FALSE) -> 0
A80: 2025-07-01 | B80: 2025 | C80: 7 | D80: 2025-07 | E80: Jul 25 | F80: Income Plan | G80: =HLOOKUP(E80,Income!$3:$5,2,FALSE) -> 0
A81: 2025-08-01 | B81: 2025 | C81: 8 | D81: 2025-08 | E81: Aug 25 | F81: Income Plan | G81: =HLOOKUP(E81,Income!$3:$5,2,FALSE) -> 0
A82: 2025-09-01 | B82: 2025 | C82: 9 | D82: 2025-09 | E82: Sep 25 | F82: Income Plan | G82: =HLOOKUP(E82,Income!$3:$5,2,FALSE) -> 0
A83: 2025-10-01 | B83: 2025 | C83: 10 | D83: 2025-10 | E83: Oct 25 | F83: Income Plan | G83: =HLOOKUP(E83,Income!$3:$5,2,FALSE) -> 0
A84: 2025-11-01 | B84: 2025 | C84: 11 | D84: 2025-11 | E84: Nov 25 | F84: Income Plan | G84: =HLOOKUP(E84,Income!$3:$5,2,FALSE) -> 0
A85: 2025-12-01 | B85: 2025 | C85: 12 | D85: 2025-12 | E85: Dec 25 | F85: Income Plan | G85: =HLOOKUP(E85,Income!$3:$5,2,FALSE) -> 0
A86: 2026-01-01 | B86: 2026 | C86: 1 | D86: 2026-01 | E86: Jan 26 | F86: Income Plan | G86: =HLOOKUP(E86,Income!$3:$5,2,FALSE) -> 0
A87: 2026-02-01 | B87: 2026 | C87: 2 | D87: 2026-02 | E87: Feb 26 | F87: Income Plan | G87: =HLOOKUP(E87,Income!$3:$5,2,FALSE) -> 0
A88: 2026-03-01 | B88: 2026 | C88: 3 | D88: 2026-03 | E88: Mar 26 | F88: Income Plan | G88: =HLOOKUP(E88,Income!$3:$5,2,FALSE) -> 0
A89: 2026-04-01 | B89: 2026 | C89: 4 | D89: 2026-04 | E89: Apr 26 | F89: Income Plan | G89: =HLOOKUP(E89,Income!$3:$5,2,FALSE) -> 0
A90: 2026-05-01 | B90: 2026 | C90: 5 | D90: 2026-05 | E90: May 26 | F90: Income Plan | G90: =HLOOKUP(E90,Income!$3:$5,2,FALSE) -> 0
A91: 2026-06-01 | B91: 2026 | C91: 6 | D91: 2026-06 | E91: Jun 26 | F91: Income Plan | G91: =HLOOKUP(E91,Income!$3:$5,2,FALSE) -> 0
A92: 2026-07-01 | B92: 2026 | C92: 7 | D92: 2026-07 | E92: Jul 26 | F92: Income Plan | G92: =HLOOKUP(E92,Income!$3:$5,2,FALSE) -> 0
A93: 2026-08-01 | B93: 2026 | C93: 8 | D93: 2026-08 | E93: Aug 26 | F93: Income Plan | G93: =HLOOKUP(E93,Income!$3:$5,2,FALSE) -> 0
A94: 2026-09-01 | B94: 2026 | C94: 9 | D94: 2026-09 | E94: Sep 26 | F94: Income Plan | G94: =HLOOKUP(E94,Income!$3:$5,2,FALSE) -> 0
A95: 2026-10-01 | B95: 2026 | C95: 10 | D95: 2026-10 | E95: Oct 26 | F95: Income Plan | G95: =HLOOKUP(E95,Income!$3:$5,2,FALSE) -> 0
A96: 2026-11-01 | B96: 2026 | C96: 11 | D96: 2026-11 | E96: Nov 26 | F96: Income Plan | G96: =HLOOKUP(E96,Income!$3:$5,2,FALSE) -> 0
A97: 2026-12-01 | B97: 2026 | C97: 12 | D97: 2026-12 | E97: Dec 26 | F97: Income Plan | G97: =HLOOKUP(E97,Income!$3:$5,2,FALSE) -> 0
A98: 2027-01-01 | B98: =YEAR(A98) -> 2027 | C98: =MONTH(A98) -> 1 | D98: =B98&"-"&TEXT(C98,"0#") -> 2027-01 | E98: =TEXT(A98,"mmm yy") -> Jan 27 | F98: Income Plan | G98: =HLOOKUP(E98,Income!$3:$5,2,FALSE) -> 0
A99: 2027-02-01 | B99: 2027 | C99: 2 | D99: 2027-02 | E99: Feb 27 | F99: Income Plan | G99: =HLOOKUP(E99,Income!$3:$5,2,FALSE) -> 0
A100: 2027-03-01 | B100: 2027 | C100: 3 | D100: 2027-03 | E100: Mar 27 | F100: Income Plan | G100: =HLOOKUP(E100,Income!$3:$5,2,FALSE) -> 0
A101: 2027-04-01 | B101: 2027 | C101: 4 | D101: 2027-04 | E101: Apr 27 | F101: Income Plan | G101: =HLOOKUP(E101,Income!$3:$5,2,FALSE) -> 0
A102: 2027-05-01 | B102: 2027 | C102: 5 | D102: 2027-05 | E102: May 27 | F102: Income Plan | G102: =HLOOKUP(E102,Income!$3:$5,2,FALSE) -> 0
A103: 2027-06-01 | B103: 2027 | C103: 6 | D103: 2027-06 | E103: Jun 27 | F103: Income Plan | G103: =HLOOKUP(E103,Income!$3:$5,2,FALSE) -> 0
A104: 2027-07-01 | B104: 2027 | C104: 7 | D104: 2027-07 | E104: Jul 27 | F104: Income Plan | G104: =HLOOKUP(E104,Income!$3:$5,2,FALSE) -> 0
A105: 2027-08-01 | B105: 2027 | C105: 8 | D105: 2027-08 | E105: Aug 27 | F105: Income Plan | G105: =HLOOKUP(E105,Income!$3:$5,2,FALSE) -> 0
A106: 2027-09-01 | B106: 2027 | C106: 9 | D106: 2027-09 | E106: Sep 27 | F106: Income Plan | G106: =HLOOKUP(E106,Income!$3:$5,2,FALSE) -> 0
A107: 2027-10-01 | B107: 2027 | C107: 10 | D107: 2027-10 | E107: Oct 27 | F107: Income Plan | G107: =HLOOKUP(E107,Income!$3:$5,2,FALSE) -> 0
A108: 2027-11-01 | B108: 2027 | C108: 11 | D108: 2027-11 | E108: Nov 27 | F108: Income Plan | G108: =HLOOKUP(E108,Income!$3:$5,2,FALSE) -> 0
A109: 2027-12-01 | B109: 2027 | C109: 12 | D109: 2027-12 | E109: Dec 27 | F109: Income Plan | G109: =HLOOKUP(E109,Income!$3:$5,2,FALSE) -> 0
A110: 2028-01-01 | B110: 2028 | C110: 1 | D110: 2028-01 | E110: Jan 28 | F110: Income Plan | G110: =HLOOKUP(E110,Income!$3:$5,2,FALSE) -> 0
A111: 2028-02-01 | B111: 2028 | C111: 2 | D111: 2028-02 | E111: Feb 28 | F111: Income Plan | G111: =HLOOKUP(E111,Income!$3:$5,2,FALSE) -> 0
A112: 2028-03-01 | B112: 2028 | C112: 3 | D112: 2028-03 | E112: Mar 28 | F112: Income Plan | G112: =HLOOKUP(E112,Income!$3:$5,2,FALSE) -> 0
A113: 2028-04-01 | B113: 2028 | C113: 4 | D113: 2028-04 | E113: Apr 28 | F113: Income Plan | G113: =HLOOKUP(E113,Income!$3:$5,2,FALSE) -> 0
A114: 2028-05-01 | B114: 2028 | C114: 5 | D114: 2028-05 | E114: May 28 | F114: Income Plan | G114: =HLOOKUP(E114,Income!$3:$5,2,FALSE) -> 0
A115: 2028-06-01 | B115: 2028 | C115: 6 | D115: 2028-06 | E115: Jun 28 | F115: Income Plan | G115: =HLOOKUP(E115,Income!$3:$5,2,FALSE) -> 0
A116: 2028-07-01 | B116: 2028 | C116: 7 | D116: 2028-07 | E116: Jul 28 | F116: Income Plan | G116: =HLOOKUP(E116,Income!$3:$5,2,FALSE) -> 0
A117: 2028-08-01 | B117: 2028 | C117: 8 | D117: 2028-08 | E117: Aug 28 | F117: Income Plan | G117: =HLOOKUP(E117,Income!$3:$5,2,FALSE) -> 0
A118: 2028-09-01 | B118: 2028 | C118: 9 | D118: 2028-09 | E118: Sep 28 | F118: Income Plan | G118: =HLOOKUP(E118,Income!$3:$5,2,FALSE) -> 0
A119: 2028-10-01 | B119: 2028 | C119: 10 | D119: 2028-10 | E119: Oct 28 | F119: Income Plan | G119: =HLOOKUP(E119,Income!$3:$5,2,FALSE) -> 0
A120: 2028-11-01 | B120: 2028 | C120: 11 | D120: 2028-11 | E120: Nov 28 | F120: Income Plan | G120: =HLOOKUP(E120,Income!$3:$5,2,FALSE) -> 0
A121: 2028-12-01 | B121: 2028 | C121: 12 | D121: 2028-12 | E121: Dec 28 | F121: Income Plan | G121: =HLOOKUP(E121,Income!$3:$5,2,FALSE) -> 0
A122: =A2 -> 2019-01-01 | B122: =YEAR(A122) -> 2019 | C122: =MONTH(A122) -> 1 | D122: =B122&"-"&TEXT(C122,"0#") -> 2019-01 | E122: Jan 19 | F122: Income Actual | G122: =HLOOKUP(E122,Income!$3:$5,3,FALSE) -> 3439.78
A123: =A3 -> 2019-02-01 | B123: 2019 | C123: 2 | D123: 2019-02 | E123: Feb 19 | F123: Income Actual | G123: =HLOOKUP(E123,Income!$3:$5,3,FALSE) -> 3267.89
A124: =A4 -> 2019-03-01 | B124: 2019 | C124: 3 | D124: 2019-03 | E124: Mar 19 | F124: Income Actual | G124: =HLOOKUP(E124,Income!$3:$5,3,FALSE) -> 3845.34
A125: =A5 -> 2019-04-01 | B125: 2019 | C125: 4 | D125: 2019-04 | E125: Apr 19 | F125: Income Actual | G125: =HLOOKUP(E125,Income!$3:$5,3,FALSE) -> 0
A126: =A6 -> 2019-05-01 | B126: 2019 | C126: 5 | D126: 2019-05 | E126: May 19 | F126: Income Actual | G126: =HLOOKUP(E126,Income!$3:$5,3,FALSE) -> 0
A127: =A7 -> 2019-06-01 | B127: 2019 | C127: 6 | D127: 2019-06 | E127: Jun 19 | F127: Income Actual | G127: =HLOOKUP(E127,Income!$3:$5,3,FALSE) -> 0
A128: =A8 -> 2019-07-01 | B128: 2019 | C128: 7 | D128: 2019-07 | E128: Jul 19 | F128: Income Actual | G128: =HLOOKUP(E128,Income!$3:$5,3,FALSE) -> 0
A129: =A9 -> 2019-08-01 | B129: 2019 | C129: 8 | D129: 2019-08 | E129: Aug 19 | F129: Income Actual | G129: =HLOOKUP(E129,Income!$3:$5,3,FALSE) -> 0
A130: =A10 -> 2019-09-01 | B130: 2019 | C130: 9 | D130: 2019-09 | E130: Sep 19 | F130: Income Actual | G130: =HLOOKUP(E130,Income!$3:$5,3,FALSE) -> 0
A131: =A11 -> 2019-10-01 | B131: 2019 | C131: 10 | D131: 2019-10 | E131: Oct 19 | F131: Income Actual | G131: =HLOOKUP(E131,Income!$3:$5,3,FALSE) -> 0
A132: =A12 -> 2019-11-01 | B132: 2019 | C132: 11 | D132: 2019-11 | E132: Nov 19 | F132: Income Actual | G132: =HLOOKUP(E132,Income!$3:$5,3,FALSE) -> 0
A133: =A13 -> 2019-12-01 | B133: 2019 | C133: 12 | D133: 2019-12 | E133: Dec 19 | F133: Income Actual | G133: =HLOOKUP(E133,Income!$3:$5,3,FALSE) -> 0
A134: =A14 -> 2020-01-01 | B134: 2020 | C134: 1 | D134: 2020-01 | E134: Jan 20 | F134: Income Actual | G134: =HLOOKUP(E134,Income!$3:$5,3,FALSE) -> 0
A135: =A15 -> 2020-02-01 | B135: 2020 | C135: 2 | D135: 2020-02 | E135: Feb 20 | F135: Income Actual | G135: =HLOOKUP(E135,Income!$3:$5,3,FALSE) -> 0
A136: =A16 -> 2020-03-01 | B136: 2020 | C136: 3 | D136: 2020-03 | E136: Mar 20 | F136: Income Actual | G136: =HLOOKUP(E136,Income!$3:$5,3,FALSE) -> 0
A137: =A17 -> 2020-04-01 | B137: 2020 | C137: 4 | D137: 2020-04 | E137: Apr 20 | F137: Income Actual | G137: =HLOOKUP(E137,Income!$3:$5,3,FALSE) -> 0
A138: =A18 -> 2020-05-01 | B138: 2020 | C138: 5 | D138: 2020-05 | E138: May 20 | F138: Income Actual | G138: =HLOOKUP(E138,Income!$3:$5,3,FALSE) -> 0
A139: =A19 -> 2020-06-01 | B139: 2020 | C139: 6 | D139: 2020-06 | E139: Jun 20 | F139: Income Actual | G139: =HLOOKUP(E139,Income!$3:$5,3,FALSE) -> 0
A140: =A20 -> 2020-07-01 | B140: 2020 | C140: 7 | D140: 2020-07 | E140: Jul 20 | F140: Income Actual | G140: =HLOOKUP(E140,Income!$3:$5,3,FALSE) -> 0
A141: =A21 -> 2020-08-01 | B141: 2020 | C141: 8 | D141: 2020-08 | E141: Aug 20 | F141: Income Actual | G141: =HLOOKUP(E141,Income!$3:$5,3,FALSE) -> 0
A142: =A22 -> 2020-09-01 | B142: 2020 | C142: 9 | D142: 2020-09 | E142: Sep 20 | F142: Income Actual | G142: =HLOOKUP(E142,Income!$3:$5,3,FALSE) -> 0
A143: =A23 -> 2020-10-01 | B143: 2020 | C143: 10 | D143: 2020-10 | E143: Oct 20 | F143: Income Actual | G143: =HLOOKUP(E143,Income!$3:$5,3,FALSE) -> 0
A144: =A24 -> 2020-11-01 | B144: 2020 | C144: 11 | D144: 2020-11 | E144: Nov 20 | F144: Income Actual | G144: =HLOOKUP(E144,Income!$3:$5,3,FALSE) -> 0
A145: =A25 -> 2020-12-01 | B145: 2020 | C145: 12 | D145: 2020-12 | E145: Dec 20 | F145: Income Actual | G145: =HLOOKUP(E145,Income!$3:$5,3,FALSE) -> 0
A146: =A26 -> 2021-01-01 | B146: 2021 | C146: 1 | D146: 2021-01 | E146: Jan 21 | F146: Income Actual | G146: =HLOOKUP(E146,Income!$3:$5,3,FALSE) -> 0
A147: =A27 -> 2021-02-01 | B147: 2021 | C147: 2 | D147: 2021-02 | E147: Feb 21 | F147: Income Actual | G147: =HLOOKUP(E147,Income!$3:$5,3,FALSE) -> 0
A148: =A28 -> 2021-03-01 | B148: 2021 | C148: 3 | D148: 2021-03 | E148: Mar 21 | F148: Income Actual | G148: =HLOOKUP(E148,Income!$3:$5,3,FALSE) -> 0
A149: =A29 -> 2021-04-01 | B149: 2021 | C149: 4 | D149: 2021-04 | E149: Apr 21 | F149: Income Actual | G149: =HLOOKUP(E149,Income!$3:$5,3,FALSE) -> 0
A150: =A30 -> 2021-05-01 | B150: 2021 | C150: 5 | D150: 2021-05 | E150: May 21 | F150: Income Actual | G150: =HLOOKUP(E150,Income!$3:$5,3,FALSE) -> 0
A151: =A31 -> 2021-06-01 | B151: 2021 | C151: 6 | D151: 2021-06 | E151: Jun 21 | F151: Income Actual | G151: =HLOOKUP(E151,Income!$3:$5,3,FALSE) -> 0
A152: =A32 -> 2021-07-01 | B152: 2021 | C152: 7 | D152: 2021-07 | E152: Jul 21 | F152: Income Actual | G152: =HLOOKUP(E152,Income!$3:$5,3,FALSE) -> 0
A153: =A33 -> 2021-08-01 | B153: 2021 | C153: 8 | D153: 2021-08 | E153: Aug 21 | F153: Income Actual | G153: =HLOOKUP(E153,Income!$3:$5,3,FALSE) -> 0
A154: =A34 -> 2021-09-01 | B154: 2021 | C154: 9 | D154: 2021-09 | E154: Sep 21 | F154: Income Actual | G154: =HLOOKUP(E154,Income!$3:$5,3,FALSE) -> 0
A155: =A35 -> 2021-10-01 | B155: 2021 | C155: 10 | D155: 2021-10 | E155: =TEXT(A155,"mmm yy") -> Oct 21 | F155: Income Actual | G155: =HLOOKUP(E155,Income!$3:$5,3,FALSE) -> 0
A156: =A36 -> 2021-11-01 | B156: 2021 | C156: 11 | D156: 2021-11 | E156: Nov 21 | F156: Income Actual | G156: =HLOOKUP(E156,Income!$3:$5,3,FALSE) -> 0
A157: =A37 -> 2021-12-01 | B157: 2021 | C157: 12 | D157: 2021-12 | E157: Dec 21 | F157: Income Actual | G157: =HLOOKUP(E157,Income!$3:$5,3,FALSE) -> 0
A158: =A38 -> 2022-01-01 | B158: 2022 | C158: 1 | D158: 2022-01 | E158: Jan 22 | F158: Income Actual | G158: =HLOOKUP(E158,Income!$3:$5,3,FALSE) -> 0
A159: =A39 -> 2022-02-01 | B159: 2022 | C159: 2 | D159: 2022-02 | E159: Feb 22 | F159: Income Actual | G159: =HLOOKUP(E159,Income!$3:$5,3,FALSE) -> 0
A160: =A40 -> 2022-03-01 | B160: 2022 | C160: 3 | D160: 2022-03 | E160: Mar 22 | F160: Income Actual | G160: =HLOOKUP(E160,Income!$3:$5,3,FALSE) -> 0
A161: =A41 -> 2022-04-01 | B161: 2022 | C161: 4 | D161: 2022-04 | E161: Apr 22 | F161: Income Actual | G161: =HLOOKUP(E161,Income!$3:$5,3,FALSE) -> 0
A162: =A42 -> 2022-05-01 | B162: 2022 | C162: 5 | D162: 2022-05 | E162: May 22 | F162: Income Actual | G162: =HLOOKUP(E162,Income!$3:$5,3,FALSE) -> 0
A163: =A43 -> 2022-06-01 | B163: 2022 | C163: 6 | D163: 2022-06 | E163: Jun 22 | F163: Income Actual | G163: =HLOOKUP(E163,Income!$3:$5,3,FALSE) -> 0
A164: =A44 -> 2022-07-01 | B164: 2022 | C164: 7 | D164: 2022-07 | E164: Jul 22 | F164: Income Actual | G164: =HLOOKUP(E164,Income!$3:$5,3,FALSE) -> 0
A165: =A45 -> 2022-08-01 | B165: 2022 | C165: 8 | D165: 2022-08 | E165: Aug 22 | F165: Income Actual | G165: =HLOOKUP(E165,Income!$3:$5,3,FALSE) -> 0
A166: =A46 -> 2022-09-01 | B166: 2022 | C166: 9 | D166: 2022-09 | E166: Sep 22 | F166: Income Actual | G166: =HLOOKUP(E166,Income!$3:$5,3,FALSE) -> 0
A167: =A47 -> 2022-10-01 | B167: 2022 | C167: 10 | D167: 2022-10 | E167: Oct 22 | F167: Income Actual | G167: =HLOOKUP(E167,Income!$3:$5,3,FALSE) -> 0
A168: =A48 -> 2022-11-01 | B168: 2022 | C168: 11 | D168: 2022-11 | E168: Nov 22 | F168: Income Actual | G168: =HLOOKUP(E168,Income!$3:$5,3,FALSE) -> 0
A169: =A49 -> 2022-12-01 | B169: 2022 | C169: 12 | D169: 2022-12 | E169: Dec 22 | F169: Income Actual | G169: =HLOOKUP(E169,Income!$3:$5,3,FALSE) -> 0
A170: =A50 -> 2023-01-01 | B170: 2023 | C170: 1 | D170: 2023-01 | E170: Jan 23 | F170: Income Actual | G170: =HLOOKUP(E170,Income!$3:$5,3,FALSE) -> 0
A171: =A51 -> 2023-02-01 | B171: =YEAR(A171) -> 2023 | C171: =MONTH(A171) -> 2 | D171: =B171&"-"&TEXT(C171,"0#") -> 2023-02 | E171: Feb 23 | F171: Income Actual | G171: =HLOOKUP(E171,Income!$3:$5,3,FALSE) -> 0
A172: =A52 -> 2023-03-01 | B172: 2023 | C172: 3 | D172: 2023-03 | E172: Mar 23 | F172: Income Actual | G172: =HLOOKUP(E172,Income!$3:$5,3,FALSE) -> 0
A173: =A53 -> 2023-04-01 | B173: 2023 | C173: 4 | D173: 2023-04 | E173: Apr 23 | F173: Income Actual | G173: =HLOOKUP(E173,Income!$3:$5,3,FALSE) -> 0
A174: =A54 -> 2023-05-01 | B174: 2023 | C174: 5 | D174: 2023-05 | E174: May 23 | F174: Income Actual | G174: =HLOOKUP(E174,Income!$3:$5,3,FALSE) -> 0
A175: =A55 -> 2023-06-01 | B175: 2023 | C175: 6 | D175: 2023-06 | E175: Jun 23 | F175: Income Actual | G175: =HLOOKUP(E175,Income!$3:$5,3,FALSE) -> 0
A176: =A56 -> 2023-07-01 | B176: 2023 | C176: 7 | D176: 2023-07 | E176: Jul 23 | F176: Income Actual | G176: =HLOOKUP(E176,Income!$3:$5,3,FALSE) -> 0
A177: =A57 -> 2023-08-01 | B177: 2023 | C177: 8 | D177: 2023-08 | E177: Aug 23 | F177: Income Actual | G177: =HLOOKUP(E177,Income!$3:$5,3,FALSE) -> 0
A178: =A58 -> 2023-09-01 | B178: 2023 | C178: 9 | D178: 2023-09 | E178: Sep 23 | F178: Income Actual | G178: =HLOOKUP(E178,Income!$3:$5,3,FALSE) -> 0
A179: =A59 -> 2023-10-01 | B179: 2023 | C179: 10 | D179: 2023-10 | E179: Oct 23 | F179: Income Actual | G179: =HLOOKUP(E179,Income!$3:$5,3,FALSE) -> 0
A180: =A60 -> 2023-11-01 | B180: 2023 | C180: 11 | D180: 2023-11 | E180: Nov 23 | F180: Income Actual | G180: =HLOOKUP(E180,Income!$3:$5,3,FALSE) -> 0
A181: =A61 -> 2023-12-01 | B181: 2023 | C181: 12 | D181: 2023-12 | E181: Dec 23 | F181: Income Actual | G181: =HLOOKUP(E181,Income!$3:$5,3,FALSE) -> 0
A182: =A62 -> 2024-01-01 | B182: 2024 | C182: 1 | D182: 2024-01 | E182: Jan 24 | F182: Income Actual | G182: =HLOOKUP(E182,Income!$3:$5,3,FALSE) -> 0
A183: =A63 -> 2024-02-01 | B183: 2024 | C183: 2 | D183: 2024-02 | E183: Feb 24 | F183: Income Actual | G183: =HLOOKUP(E183,Income!$3:$5,3,FALSE) -> 0
A184: =A64 -> 2024-03-01 | B184: 2024 | C184: 3 | D184: 2024-03 | E184: Mar 24 | F184: Income Actual | G184: =HLOOKUP(E184,Income!$3:$5,3,FALSE) -> 0
A185: =A65 -> 2024-04-01 | B185: 2024 | C185: 4 | D185: 2024-04 | E185: Apr 24 | F185: Income Actual | G185: =HLOOKUP(E185,Income!$3:$5,3,FALSE) -> 0
A186: =A66 -> 2024-05-01 | B186: 2024 | C186: 5 | D186: 2024-05 | E186: May 24 | F186: Income Actual | G186: =HLOOKUP(E186,Income!$3:$5,3,FALSE) -> 0
A187: =A67 -> 2024-06-01 | B187: 2024 | C187: 6 | D187: 2024-06 | E187: Jun 24 | F187: Income Actual | G187: =HLOOKUP(E187,Income!$3:$5,3,FALSE) -> 0
A188: =A68 -> 2024-07-01 | B188: 2024 | C188: 7 | D188: 2024-07 | E188: Jul 24 | F188: Income Actual | G188: =HLOOKUP(E188,Income!$3:$5,3,FALSE) -> 0
A189: =A69 -> 2024-08-01 | B189: 2024 | C189: 8 | D189: 2024-08 | E189: Aug 24 | F189: Income Actual | G189: =HLOOKUP(E189,Income!$3:$5,3,FALSE) -> 0
A190: =A70 -> 2024-09-01 | B190: 2024 | C190: 9 | D190: 2024-09 | E190: Sep 24 | F190: Income Actual | G190: =HLOOKUP(E190,Income!$3:$5,3,FALSE) -> 0
A191: =A71 -> 2024-10-01 | B191: 2024 | C191: 10 | D191: 2024-10 | E191: Oct 24 | F191: Income Actual | G191: =HLOOKUP(E191,Income!$3:$5,3,FALSE) -> 0
A192: =A72 -> 2024-11-01 | B192: 2024 | C192: 11 | D192: 2024-11 | E192: Nov 24 | F192: Income Actual | G192: =HLOOKUP(E192,Income!$3:$5,3,FALSE) -> 0
A193: =A73 -> 2024-12-01 | B193: 2024 | C193: 12 | D193: 2024-12 | E193: Dec 24 | F193: Income Actual | G193: =HLOOKUP(E193,Income!$3:$5,3,FALSE) -> 0
A194: =A74 -> 2025-01-01 | B194: 2025 | C194: 1 | D194: 2025-01 | E194: Jan 25 | F194: Income Actual | G194: =HLOOKUP(E194,Income!$3:$5,3,FALSE) -> 0
A195: =A75 -> 2025-02-01 | B195: 2025 | C195: 2 | D195: 2025-02 | E195: Feb 25 | F195: Income Actual | G195: =HLOOKUP(E195,Income!$3:$5,3,FALSE) -> 0
A196: =A76 -> 2025-03-01 | B196: 2025 | C196: 3 | D196: 2025-03 | E196: Mar 25 | F196: Income Actual | G196: =HLOOKUP(E196,Income!$3:$5,3,FALSE) -> 0
A197: =A77 -> 2025-04-01 | B197: 2025 | C197: 4 | D197: 2025-04 | E197: Apr 25 | F197: Income Actual | G197: =HLOOKUP(E197,Income!$3:$5,3,FALSE) -> 0
A198: =A78 -> 2025-05-01 | B198: 2025 | C198: 5 | D198: 2025-05 | E198: May 25 | F198: Income Actual | G198: =HLOOKUP(E198,Income!$3:$5,3,FALSE) -> 0
A199: =A79 -> 2025-06-01 | B199: 2025 | C199: 6 | D199: 2025-06 | E199: Jun 25 | F199: Income Actual | G199: =HLOOKUP(E199,Income!$3:$5,3,FALSE) -> 0
A200: =A80 -> 2025-07-01 | B200: 2025 | C200: 7 | D200: 2025-07 | E200: Jul 25 | F200: Income Actual | G200: =HLOOKUP(E200,Income!$3:$5,3,FALSE) -> 0
... 401 more rows

Sheet Help
C2: Invoice v1.0
C6: This free Excel tool was brought to you by:
C7: http://www.excel-macros.co.uk/
C9: There is a short training video available on YouTube which explains how to use it:
C11: https://www.youtube.com/channel/UCvEnfhjNXvtVf9g9pAczbqQ
C13: We really hope you enjoy using this tool and get great benefit from it.
C16: If you need any help or advice please contact us on:
C18: Great@Excel-Macros.co.uk
